fUSD/lending_fUSD_20240217
["ID","MTS","AMOUNT","RATE_DAILY","PERIOD"]
[314310539,1708174238756,-4833.78305591,0.00045,17]
[314310540,1708174238766,-404.92800675,0.00045,4]
[314310541,1708174238777,-447.52311601,0.00045,4]
[314310542,1708174238787,-221.57,0.00045087,2]
[314310543,1708174238796,-152.17,0.000452,5]
[314310544,1708174238806,-152.17,0.000452,5]
[314310545,1708174238817,-152.17,0.000452,5]
[314310546,1708174238826,-152.17,0.000452,5]
[314310547,1708174238835,-152.17,0.000452,5]
[314310548,1708174238845,-152.17,0.000452,5]
[314310549,1708174238854,-152.17,0.000452,5]
[314310550,1708174238863,-152.17,0.000452,5]
[314310551,1708174238873,-152.17,0.000452,5]
[314310552,1708174238885,-152.17,0.000452,5]
[314310553,1708174238894,-152.17,0.000452,5]
[314310554,1708174238905,-152.17,0.000452,5]
[314310555,1708174238914,-152.17,0.000452,5]
[314310556,1708174238923,-152.17,0.000452,5]
[314310557,1708174238932,-152.17,0.000452,5]
[314310558,1708174238941,-152.17,0.000452,5]
[314310559,1708174238950,-205.0,0.00045231,10]
[314310560,1708174238959,-158.09064638,0.000455,2]
[314310561,1708174238969,-151.0,0.00045798,4]
[314310562,1708174238978,-327.62,0.00045828,2]
[314310563,1708174238987,-166.05101382,0.00045858,30]
[314310564,1708174238996,-158.23203844,0.00045919,30]
[314310565,1708174239006,-176.21,0.00045938,2]
[314310566,1708174239015,-2252.68375417,0.00046,4]
[314310567,1708174239025,-332.60186682,0.0004623,30]
[314310568,1708174239036,-332.60186682,0.00046247,30]
[314310569,1708174239046,-438.6,0.00046262,2]
[314310570,1708174239055,-656.94976291,0.000464,15]
[314310571,1708174239064,-332.60186682,0.00046433,30]
[314310572,1708174239074,-205.0,0.00046462,10]
[314310573,1708174239083,-2000.0,0.000466,2]
[314310574,1708174239092,-151.0,0.00046733,2]
[314310575,1708174239103,-332.60186682,0.00046744,30]
[314310576,1708174239112,-392.55473843,0.0004694,2]
[314310577,1708174239122,-152.0,0.00046972,4]
[314310578,1708174239132,-1604.0,0.00047,15]
[314310579,1708174239141,-304.2,0.0004714,120]
[314310580,1708174239150,-1308.0,0.000472,15]
[314310581,1708174239159,-327.62,0.00047463,2]
[314310582,1708174239169,-332.60186682,0.00047499,30]
[314310583,1708174239178,-205.0,0.00047692,15]
[314310584,1708174239187,-332.60186682,0.0004778,30]
[314310585,1708174239196,-332.60186682,0.00047832,30]
[314310586,1708174239206,-166.05101382,0.00047849,30]
[314310587,1708174239215,-180.0,0.00047911,2]
[314310588,1708174239225,-171.0,0.00048,90]
[314310589,1708174239234,-1604.0,0.00048,15]
[314310590,1708174239244,-219.48710364,0.00048095,13]
[314310591,1708174239253,-332.60186682,0.00048102,30]
[314310592,1708174239262,-26873.7556,0.00048195,2]
[314310593,1708174239272,-2955.4136,0.00048195,2]
[314310594,1708174239280,-160.0,0.00048271,30]
[314310595,1708174239290,-878.43053415,0.00048294,10]
[314310596,1708174239300,-200.7,0.00048428,120]
[314310597,1708174239310,-438.6,0.00048526,2]
[314310598,1708174239320,-332.60186682,0.00048542,30]
[314310599,1708174239329,-152.17,0.000486,6]
[314310600,1708174239338,-152.17,0.000486,6]
[314310601,1708174239348,-152.17,0.000486,6]
[314310602,1708174239358,-152.17,0.000486,6]
[314310603,1708174239367,-152.17,0.000486,6]
[314310604,1708174239377,-152.17,0.000486,6]
[314310605,1708174239386,-152.17,0.000486,6]
[314310606,1708174239395,-152.17,0.000486,6]
[314310607,1708174239405,-152.17,0.000486,6]
[314310608,1708174239414,-152.17,0.000486,6]
[314310609,1708174239547,-152.17,0.000486,6]
[314310610,1708174239557,-152.17,0.000486,6]
[314310611,1708174239567,-152.17,0.000486,6]
[314310612,1708174239577,-152.17,0.000486,6]
[314310613,1708174239587,-152.17,0.000486,6]
[314310614,1708174239597,-152.17,0.000486,6]
[314310615,1708174239606,-5077.33063501,0.00048735,13]
[314310616,1708174239616,-10154.66127,0.0004878,13]
[314310617,1708174239627,-25997.55481538,0.0004879,2]
[314310618,1708174239635,-160.0,0.00048819,30]
[314310619,1708174239644,-200.0,0.00048906,30]
[314310620,1708174239655,-205.0,0.00048923,19]
[314310621,1708174239665,-266.16367082,0.00048985,12]
[314310622,1708174239674,-546.20790943,0.0004899,60]
[314310623,1708174239683,-5077.33063501,0.0004899,13]
[314310624,1708174239693,-197.28066176,0.00049,15]
[314310625,1708174239702,-1000.0,0.00049,120]
[314310626,1708174239711,-5077.33063501,0.0004909,13]
[314310627,1708174239720,-327.62,0.00049098,2]
[314310628,1708174239730,-10000.0,0.000491,30]
[314310629,1708174239740,-285.49587402,0.0004917,21]
[314310630,1708174239749,-525.93644693,0.0004918,5]
[314310631,1708174239758,-392.55473843,0.0004918,2]
[314310632,1708174239767,-500.0,0.0004918,2]
[314310633,1708174239776,-1971.06344686,0.0004919,2]
[314310634,1708174239792,-5284.98825314,0.0004919,2]
[314310635,1708174239801,-525.9364469,0.00049234,5]
[314310636,1708174239810,-5077.33063501,0.0004926,13]
[314310637,1708174239819,-3000.0,0.0004927,46]
[314310638,1708174239828,-5077.33063501,0.0004927,13]
[314310639,1708174239837,-391.06524383,0.00049279,7]
[314310640,1708174239854,-158.65,0.0004928,11]
[314310641,1708174239866,-1212.91218193,0.0004928,4]
[314310642,1708174239876,-2000.0,0.0004928,7]
[314310643,1708174239886,-200.0,0.0004928,7]
[314310644,1708174239896,-2000.0,0.0004928,7]
[314310645,1708174239906,-200.0,0.0004928,7]
[314310646,1708174239915,-2000.0,0.0004928,7]
[314310647,1708174239925,-200.0,0.0004928,7]
[314310648,1708174239935,-200.0,0.0004928,7]
[314310649,1708174239944,-1292.19083187,0.0004928,2]
[314310650,1708174239977,-2707.80916813,0.0004928,2]
[314310651,1708174239986,-3100.93575306,0.0004928,13]
[314310652,1708174239998,-3320.95537795,0.0004928,13]
[314310653,1708174240010,-966.87789357,0.0004928,13]
[314310654,1708174240021,-946.10790981,0.0004928,13]
[314310655,1708174240033,-10374.18094838,0.0004928,13]
[314310656,1708174240045,-1198.17767742,0.0004928,13]
[314310657,1708174240119,-43.749965,0.0004928,13]
[314310658,1708174240244,-4735.36304408,0.0004928,13]
[314310659,1708174241843,-10854.96587583,0.0004928,13]
[314310660,1708174241853,-525.9364469,0.00049288,5]
[314310661,1708174241863,-2427.85721117,0.00049289,2]
[314310662,1708174241872,-3000.0,0.000493,2]
[314310663,1708174241882,-2000.0,0.000493,2]
[314310664,1708174241892,-153.45702687,0.000493,41]
[314310665,1708174241902,-2000.0,0.000493,2]
[314310667,1708174241911,-201.70261338,0.00049315,30]
[314310668,1708174241920,-525.9364469,0.00049342,5]
[314310669,1708174241929,-5077.33063501,0.00049357,13]
[314310670,1708174241939,-30463.9838101,0.0004936,13]
[314310671,1708174241948,-222.38402291,0.0004936,2]
[314310672,1708174241957,-153.0,0.00049367,60]
[314310673,1708174241966,-35541.3144451,0.0004937,13]
[314310674,1708174241975,-82588.1255052,0.0004937,11]
[314310675,1708174241985,-46820.3869747,0.0004938,13]
[314310678,1708174243143,-7669.75430667,0.0004938,13]
[314310679,1708174243155,-14702.06039982,0.0004938,13]
[314310680,1708174243167,-1801.04596753,0.0004938,13]
[314310683,1708174270273,200000.0,0.00023,2]
[314310684,1708174270304,208409.051732,0.00023,2]
[314310685,1708174281368,8811.67585998,9e-05,2]
[314310686,1708174285267,-100000.0,0.00023,2]
[314310687,1708174292846,741.44173473,0.0001,2]
[314310688,1708174295026,567.20749905,0.000225,2]
[314310689,1708174297326,1377.45009982,0.00011,2]
[314310690,1708174308652,287.07005454,0.0002,2]
[314310691,1708174314531,14902.83955765,6.94e-05,2]
[314310692,1708174328232,2257.58746248,0.000199,3]
[314310693,1708174341691,1012.87248281,0.000244,120]
[314310694,1708174342939,6351.5973991,0.000285,120]
[314310695,1708174356171,221.81461458,0.0002211,2]
[314310696,1708174361509,-4925.21006067,0.00022999,2]
[314310697,1708174373100,-1320.3602,0.000229,2]
[314310698,1708174373121,-3604.84986067,0.00022999,2]
[314310699,1708174374679,437.43136029,0.0002,2]
[314310700,1708174390161,-3043.58477453,0.00022999,2]
[314310701,1708174390185,-136956.41522547,0.00023,2]
[314310702,1708174394335,3274.98427137,0.0001305,2]
[314310703,1708174420059,3685.79500223,0.0002,2]
[314310704,1708174426635,6160.80721672,0.000142,2]
[314310705,1708174427517,6653.0,0.0002,2]
[314310706,1708174429451,1636.55834879,0.000181,2]
[314310708,1708174446474,200.0,0.0001634,2]
[314310709,1708174448082,10357.36264851,0.0002,2]
[314310710,1708174455153,401.42614293,0.000181,2]
[314310711,1708174456486,-500.0,0.00022899,2]
[314310712,1708174456509,-500.0,0.00022899,2]
[314310713,1708174456531,-500.0,0.00022899,2]
[314310714,1708174456553,-500.0,0.00022899,2]
[314310715,1708174456576,-500.0,0.00022899,2]
[314310716,1708174456598,-209.76450452,0.00022899,2]
[314310717,1708174456619,-1000.0,0.000229,2]
[314310718,1708174456641,-7715.76313058,0.00022999,2]
[314310719,1708174456662,-88574.4723649,0.00023,2]
[314310720,1708174457363,951.24530988,0.0002,2]
[314310721,1708174461425,468.75639936,0.00018,2]
[314310722,1708174463527,994.62278336,0.000137,2]
[314310724,1708174463997,421.51746623,0.00022,2]
[314310725,1708174467774,2299.37384547,0.00025,30]
[314310726,1708174472275,223.01452385,0.000181,2]
[314310727,1708174485058,13612.77,0.00023,3]
[314310728,1708174492279,223.01452385,0.000181,2]
[314310729,1708174531378,155.0,0.000181,2]
[314310730,1708174569390,155.0,0.000181,2]
[314310731,1708174589395,155.0,0.000181,2]
[314310732,1708174607383,155.0,0.000181,2]
[314310733,1708174621557,191.91293503,0.0002,2]
[314310734,1708174628479,155.0,0.000181,2]
[314310735,1708174646483,155.0,0.000181,2]
[314310736,1708174665361,296.61330581,0.000181,2]
[314310737,1708174676479,173.53367784,0.00022914,6]
[314310738,1708174724203,-6429.80260882,0.00022899,2]
[314310739,1708174724226,-500.0,0.00022899,2]
[314310740,1708174724248,-500.0,0.00022899,2]
[314310741,1708174724270,-500.0,0.00022899,2]
[314310742,1708174724292,-20034.562,0.000229,2]
[314310743,1708174724313,-7008.853,0.000229,2]
[314310744,1708174724333,-26873.7556,0.000229,2]
[314310745,1708174724357,-1000.0,0.000229,2]
[314310746,1708174724379,-484.57425325,0.000229,2]
[314310747,1708174724400,-1177.66421532,0.000229,2]
[314310748,1708174724422,-1000.0,0.000229,2]
[314310749,1708174724443,-2955.4136,0.000229,2]
[314310750,1708174724467,-164.04091981,0.000229,2]
[314310751,1708174724488,-152.1361,0.000229,2]
[314310752,1708174724508,-360.9922173,0.00022914,2]
[314310753,1708174724532,-878.20766422,0.00022914,2]
[314310754,1708174724554,-9979.99782128,0.00023,2]
[314310755,1708174793110,20002.0,0.0002277,2]
[314310756,1708174928832,250.0,0.00022,2]
[314310757,1708174930073,250.0,0.00022274,2]
[314310758,1708174962116,177.43,0.00022,2]
[314310759,1708174963888,177.43,0.00022548,2]
[314310760,1708175138472,150.0,0.00022,2]
[314310761,1708175139762,150.0,0.00022548,2]
[314310762,1708175234911,250.0,0.00021931,2]
[314310763,1708175241866,293.78,0.00024992,10]
[314310764,1708175345508,1855.66,0.00033,120]
[314310766,1708175432384,-150.0,0.00022899,2]
[314310767,1708175432395,-150.0,0.00022899,2]
[314310768,1708175432404,-158.34973201,0.000229,2]
[314310769,1708175432414,-671.93368884,0.000229,2]
[314310770,1708175432504,-328.06631116,0.000229,2]
[314310771,1708175432514,-152.06641792,0.000229,2]
[314310772,1708175432523,-207.225,0.000229,2]
[314310773,1708175432533,-177.55942042,0.000229,2]
[314310774,1708175432542,-889.62357285,0.000229,2]
[314310775,1708175432573,-2155.65919387,0.000229,2]
[314310776,1708175432582,-181.58261504,0.000229,2]
[314310777,1708175432591,-196.9897425,0.000229,2]
[314310778,1708175432601,-207.33850733,0.000229,2]
[314310779,1708175432610,-1125.8014,0.000229,2]
[314310780,1708175432620,-572.84511401,0.000229,2]
[314310781,1708175432629,-3541.11439599,0.000229,2]
[314310782,1708175432638,-200.95724061,0.000229,2]
[314310783,1708175432649,-510.01723771,0.000229,2]
[314310784,1708175432658,-364.70327866,0.000229,2]
[314310785,1708175432677,-1292.19800863,0.000229,2]
[314310786,1708175432690,-158.349732,0.00022904,2]
[314310788,1708175432700,-158.349732,0.00022907,2]
[314310790,1708175432710,-158.349732,0.00022911,2]
[314310791,1708175432719,-158.349732,0.00022914,2]
[314310792,1708175432729,-205.20543092,0.0002299,2]
[314310793,1708175432738,-205.20543092,0.0002299,2]
[314310794,1708175432748,-1000.0,0.00022999,2]
[314310795,1708175432757,-301.08494495,0.00022999,2]
[314310796,1708175432767,-580.25039661,0.00022999,2]
[314310797,1708175432777,-500.0,0.00022999,2]
[314310798,1708175432786,-500.0,0.00022999,2]
[314310799,1708175432796,-24683.34513618,0.00023,2]
[314310800,1708175432810,-1159970.47384602,0.00023,2]
[314310801,1708175432819,-89170.10571119,0.00023,2]
[314310802,1708175432840,-2769.47617146,0.00023,2]
[314310803,1708175438343,-1018.53946748,0.00023,2]
[314310804,1708175438605,-6290.10551882,0.00023,2]
[314310805,1708175438759,-316.25152782,0.00023,2]
[314310808,1708175438783,-8717.60544875,0.00023,2]
[314310812,1708175438814,-1633388.17366799,0.00023,2]
[314310814,1708175438823,-1017.19789916,0.00023,2]
[314310816,1708175438833,-515.28,0.00023,2]
[314310818,1708175438842,-714.83,0.00023014,2]
[314310820,1708175438853,-999.99,0.00023014,2]
[314310822,1708175438861,-43476.0,0.00023014,2]
[314310824,1708175438871,-177.43,0.00023096,2]
[314310826,1708175438880,-150.0,0.00023096,2]
[314310828,1708175438889,-4282.46067838,0.000232,2]
[314310830,1708175438899,-3587.21,0.000232,2]
[314310832,1708175438908,-1076.0,0.00023347,2]
[314310834,1708175438917,-177.43,0.00023644,2]
[314310836,1708175438926,-164.11335802,0.00023644,2]
[314310838,1708175438935,-177.43,0.00024192,2]
[314310840,1708175438947,-2867.28,0.000242,2]
[314310842,1708175438956,-859.16,0.00024675,2]
[314310844,1708175438964,-177.43,0.0002474,2]
[314310846,1708175438973,-205.20543092,0.00024745,2]
[314310848,1708175438983,-3045.28276672,0.00024755,2]
[314310850,1708175438992,-1879.22,0.00024926,2]
[314310852,1708175439002,-176.22,0.00024938,2]
[314310854,1708175439011,-250.0,0.00024945,2]
[314310856,1708175439020,-150.73300819,0.00024967,2]
[314310858,1708175439029,-2000.0,0.00024996,2]
[314310860,1708175439039,-6376.72,0.00024997,2]
[314310861,1708175439047,-1000.0,0.00024999,2]
[314310864,1708175439057,-1593.45591278,0.00025,2]
[314310866,1708175439066,-2705.0,0.0002501,2]
[314310868,1708175439075,-150.0,0.00025015,2]
[314310869,1708175439084,-500.0,0.00025033,2]
[314310871,1708175439092,-500.0,0.00025053,2]
[314310873,1708175439101,-863.08945319,0.0002509,2]
[314310875,1708175439110,-7859.43063001,0.0002509,2]
[314310877,1708175439120,-200.0,0.000251,2]
[314310879,1708175439129,-500.0,0.00025124,2]
[314310881,1708175439138,-200.0,0.00025124,2]
[314310885,1708175439159,-1852.42,0.00025148,2]
[314310887,1708175439169,-250.0,0.00025173,2]
[314310889,1708175439179,-210.0,0.00025189,2]
[314310891,1708175439189,-210.0,0.00025189,2]
[314310893,1708175439198,-159.01,0.00025265,2]
[314310895,1708175439208,-177.43,0.00025288,2]
[314310897,1708175439218,-1042.2,0.00025436,2]
[314310899,1708175439227,-159.01,0.00025453,2]
[314310901,1708175439237,-293.78,0.00025604,10]
[314310903,1708175439249,-1076.0,0.00025611,2]
[314310905,1708175439259,-159.01,0.00025641,2]
[314310907,1708175439268,-572.84511394,0.00025814,2]
[314310910,1708175439278,-159.01,0.00025829,2]
[314310912,1708175439287,-177.43,0.00025836,2]
[314310914,1708175439296,-159.01,0.00026017,2]
[314310916,1708175439305,-159.01,0.00026205,2]
[314310918,1708175439315,-293.78,0.00026217,10]
[314310920,1708175439325,-5808.49552264,0.000263,2]
[314310922,1708175439335,-499.99,0.000263,2]
[314310924,1708175439344,-3242.43,0.000263,2]
[314310926,1708175439353,-177.43,0.00026384,2]
[314310928,1708175439363,-159.01,0.00026393,2]
[314310930,1708175439372,-182.01,0.00026471,2]
[314310932,1708175439382,-150.0,0.00026524,2]
[314310934,1708175439392,-159.01,0.00026581,2]
[314310936,1708175439404,-228.85,0.00026608,2]
[314310938,1708175439414,-3045.28276672,0.00026609,2]
[314310940,1708175439423,-6376.72,0.00026641,2]
[314310943,1708175439433,-1432.99,0.00026659,2]
[314310945,1708175439442,-7777.34,0.00026659,2]
[314310947,1708175439451,-1432.99,0.00026799,2]
[314310949,1708175439460,-293.78,0.00026829,10]
[314310951,1708175439469,-177.43,0.00026932,2]
[314310953,1708175439478,-1432.99,0.0002694,2]
[314310955,1708175439487,-534.58,0.00027031,2]
[314310957,1708175439496,-1432.99,0.0002708,2]
[314310959,1708175439505,-3502.56,0.00027195,2]
[314310961,1708175439514,-2468.13258941,0.000272,2]
[314310963,1708175439523,-1432.99,0.0002722,2]
[314310965,1708175439532,-830.75,0.00027346,2]
[314310967,1708175439541,-1432.99,0.0002736,2]
[314310969,1708175439550,-181.58261503,0.00027363,2]
[314310971,1708175439559,-155.0,0.00027397,2]
[314310973,1708175439568,-150.0,0.00027397,2]
[314310975,1708175439578,-3000.0,0.00027397,2]
[314310976,1708175439587,-3000.0,0.00027397,2]
[314310977,1708175439597,-3000.0,0.00027397,2]
[314310978,1708175439606,-3000.0,0.00027397,2]
[314310979,1708175439615,-3000.0,0.00027397,2]
[314310980,1708175439624,-3000.0,0.00027397,2]
[314310981,1708175439633,-3000.0,0.00027397,2]
[314310982,1708175439642,-3000.0,0.00027397,2]
[314310983,1708175439652,-3000.0,0.00027397,2]
[314310984,1708175439661,-3000.0,0.00027397,2]
[314310985,1708175439670,-3000.0,0.00027397,2]
[314310987,1708175439679,-3000.0,0.00027397,2]
[314310989,1708175439688,-3000.0,0.00027397,2]
[314310991,1708175439698,-3000.0,0.00027397,2]
[314310993,1708175439707,-4842.90253915,0.00027397,2]
[314310995,1708175439716,-302.81215118,0.00027397,5]
[314310997,1708175439725,-1206.1,0.00027423,2]
[314310999,1708175439735,-293.78,0.00027441,10]
[314311001,1708175439745,-177.43,0.0002748,2]
[314311003,1708175439754,-1432.99,0.00027501,2]
[314311006,1708175439764,-1432.99,0.00027641,2]
[314311007,1708175439773,-23900.0,0.00027673,2]
[314311010,1708175439782,-293.0,0.00027708,2]
[314311012,1708175439791,-1432.99,0.00027781,2]
[314311014,1708175439800,-1076.0,0.00027875,2]
[314311015,1708175439810,-300.0,0.00027893,2]
[314311018,1708175439819,-1432.99,0.00027922,2]
[314311020,1708175439829,-150.0,0.00027945,2]
[314311022,1708175439838,-43494.79971123,0.00028,2]
[314311024,1708175439847,-3588.10246471,0.00028,2]
[314311026,1708175439856,-177.43,0.00028028,2]
[314311028,1708175439865,-1432.99,0.00028062,2]
[314311030,1708175439875,-228.85,0.00028086,2]
[314311032,1708175439886,-168.36,0.00028138,2]
[314311034,1708175439895,-1432.99,0.00028202,2]
[314311035,1708175439907,-6376.72,0.00028284,2]
[314311038,1708175439916,-830.75,0.00028314,2]
[314311040,1708175439926,-1432.99,0.00028343,2]
[314311042,1708175439935,-3045.28276672,0.00028464,2]
[314311043,1708175439946,-1432.99,0.00028483,2]
[314311045,1708175439956,-150.0,0.00028493,2]
[314311047,1708175439966,-177.43,0.00028576,2]
[314311049,1708175439975,-1432.99,0.00028623,2]
[314311052,1708175439985,-572.84511394,0.00028729,4]
[314311054,1708175439994,-1432.99,0.00028764,2]
[314311056,1708175440003,-155.0,0.00028767,2]
[314311058,1708175440013,-1206.1,0.00028794,2]
[314311059,1708175440022,-1432.99,0.00028904,2]
[314311062,1708175440031,-150.0,0.00029041,2]
[314311064,1708175440040,-1432.99,0.00029044,2]
[314311065,1708175440050,-346.73926615,0.00029124,2]
[314311068,1708175440059,-1432.99,0.00029184,2]
[314311070,1708175440068,-300.0,0.00029263,2]
[314311072,1708175440077,-830.75,0.00029281,2]
[314311074,1708175440086,-1432.99,0.00029325,2]
[314311076,1708175440094,-228.85,0.00029564,2]
[314311078,1708175440104,-150.0,0.00029589,2]
[314311080,1708175440113,-6376.72,0.00029928,2]
[314311082,1708175440122,-409.54,0.00029973,2]
[314311084,1708175440131,-1177.58646698,0.0003,4]
[314311086,1708175440141,-456266.95772415,0.0003,2]
[314311088,1708175440151,-1861.66346308,0.0003,4]
[314311090,1708175440160,-275.27199979,0.0003,2]
[314311092,1708175440169,-205.0,0.0003,2]
[314311093,1708175440178,-298.58449128,0.000301,2]
[314311095,1708175440187,-156.4,0.00030137,2]
[314311097,1708175440196,-155.0,0.00030137,2]
[314311099,1708175440206,-150.0,0.00030137,2]
[314311102,1708175440215,-1076.0,0.00030139,2]
[314311103,1708175440224,-1206.1,0.00030165,2]
[314311105,1708175440234,-830.75,0.00030248,2]
[314311108,1708175440243,-3045.28276672,0.00030318,2]
[314311109,1708175440253,-150.0,0.00030685,2]
[314311111,1708175440262,-244.41,0.00030789,2]
[314311114,1708175440272,-156.4,0.0003098,2]
[314311116,1708175440281,-228.85,0.00031042,2]
[314311118,1708175440290,-830.75,0.00031215,2]
[314311120,1708175440299,-150.0,0.00031233,2]
[314311122,1708175440308,-4925.21006067,0.0003143,4]
[314311124,1708175440317,-155.0,0.00031507,2]
[314311125,1708175440326,-800.0,0.00031534,2]
[314311128,1708175440336,-1206.1,0.00031536,2]
[314311130,1708175440345,-6376.72,0.00031572,2]
[314311132,1708175440354,-572.84511394,0.00031643,5]
[314311134,1708175440363,-168.79,0.00031644,2]
[314311136,1708175440373,-178.83894219,0.00031781,2]
[314311137,1708175440382,-179692.096631,0.000318,3]
[314311140,1708175440391,-156.4,0.00031823,2]
[314311141,1708175440402,-181.58261503,0.00031826,2]
[314311144,1708175440411,-4396.26985613,0.00032125,2]
[314311146,1708175440420,-3045.28276672,0.00032173,3]
[314311148,1708175440429,-830.75,0.00032182,2]
[314311150,1708175440438,-1076.0,0.00032403,2]
[314311152,1708175440447,-228.85,0.00032521,2]
[314311153,1708175440456,-156.4,0.00032666,2]
[314311155,1708175440465,-168.36,0.00032782,2]
[314311158,1708175440474,-24516.71370047,0.00032874,2]
[314311159,1708175440483,-37326.86,0.00032877,2]
[314311162,1708175440492,-155.0,0.00032877,2]
[314311164,1708175440502,-204.65,0.0003288,2]
[314311165,1708175440511,-8000.0,0.000329,2]
[314311167,1708175440520,-1206.1,0.00032907,2]
[314311169,1708175440530,-207.33850733,0.000331,2]
[314311171,1708175440539,-3541.11439597,0.000331,2]
[314311173,1708175440548,-200.95724061,0.000331,2]
[314311176,1708175440559,-364.70327864,0.000331,2]
[314311178,1708175440568,-1292.19800863,0.000331,2]
[314311180,1708175440578,-830.75,0.00033149,2]
[314311182,1708175440587,-6376.72,0.00033216,2]
[314311184,1708175440596,-800.0,0.00033479,2]
[314311186,1708175440606,-156.4,0.00033509,2]
[314311188,1708175440615,-1000.0,0.00033711,2]
[314311190,1708175440624,-153.31471595,0.000339,2]
[314311192,1708175440633,-153.31471587,0.000339,2]
[314311194,1708175440643,-153.31471587,0.000339,2]
[314311196,1708175440652,-153.31471587,0.000339,2]
[314311198,1708175440661,-153.31471587,0.000339,2]
[314311200,1708175440670,-153.31471587,0.000339,2]
[314311202,1708175440680,-228.85,0.00033999,2]
[314311204,1708175440689,-3045.28276672,0.00034027,6]
[314311206,1708175440698,-7548.0,0.000342,2]
[314311208,1708175440709,-155.0,0.00034247,2]
[314311210,1708175440718,-156.4,0.00034352,2]
[314311212,1708175440727,-3862.382204,0.0003452,2]
[314311214,1708175440736,-23990.459217,0.0003452,2]
[314311216,1708175440745,-5991.57,0.00034521,2]
[314311218,1708175440754,-572.84511394,0.00034557,7]
[314311220,1708175440764,-1076.0,0.00034666,2]
[314311222,1708175440773,-200.0,0.00034788,120]
[314311224,1708175440782,-5793.573306,0.00034794,2]
[314311226,1708175440791,-35985.688826,0.00034794,2]
[314311228,1708175440800,-150.1,0.000348,2]
[314311230,1708175440810,-2810.40082691,0.000349,2]
[314311232,1708175440819,-2810.40082674,0.000349,2]
[314311234,1708175440829,-2810.40082674,0.000349,2]
[314311236,1708175440839,-2810.40082674,0.000349,2]
[314311238,1708175440848,-2810.40082674,0.000349,2]
[314311240,1708175440858,-2810.40082674,0.000349,2]
[314311243,1708175440867,-2810.40082674,0.000349,2]
[314311245,1708175440876,-2810.40082674,0.000349,2]
[314311247,1708175440885,-205.0,0.00034931,2]
[314311261,1708175441008,-7724.764408,0.00034931,2]
[314311263,1708175441018,-47980.918435,0.00034931,2]
[314311265,1708175441028,-230.08544777,0.00035,7]
[314311267,1708175441038,-38661.45884693,0.00035,4]
[314311269,1708175441047,-15872.75458595,0.00035,7]
[314311271,1708175441056,-328.83043744,0.00035,2]
[314311273,1708175441065,-418.27758908,0.00035,2]
[314311275,1708175441075,-3000.0,0.00035,5]
[314311277,1708175441084,-15663.82651064,0.00035,2]
[314311279,1708175441093,-9655.95551,0.00035068,2]
[314311281,1708175441102,-59976.148044,0.00035068,2]
[314311283,1708175441112,-156.4,0.00035195,2]
[314311285,1708175441121,-13518.337715,0.00035342,2]
[314311287,1708175441130,-83966.607262,0.00035342,2]
[314311289,1708175441139,-153.31471587,0.00035429,2]
[314311291,1708175441148,-228.85,0.00035477,2]
[314311293,1708175441159,-2810.40082674,0.00035532,2]
[314311295,1708175441168,-7548.6533092,0.000356,2]
[314311297,1708175441177,-500.0,0.00035616,2]
[314311299,1708175441186,-500.0,0.00035616,2]
[314311301,1708175441195,-500.0,0.00035616,2]